[Event "Early-Titled-Tuesday-Blitz-March-05-2024"]
[Site "Chess.com"]
[Date "2024.03.05"]
[Round "3"]
[White "ActorXu"]
[Black "Kostya0705"]
[Result "1-0"]
[WhiteElo "2853"]
[BlackElo "2572"]
[TimeControl "180+1"]
[EndTime "8:29:32 PST"]
[Termination "ActorXu won by checkmate"]

1. e4 {[%clk 0:03:00.9]} 1... c5 {[%clk 0:02:59.8]} 2. Nf3 {[%clk 0:03:01.1]}
2... e6 {[%clk 0:03:00.4]} 3. d4 {[%clk 0:03:01.3]} 3... cxd4 {[%clk 0:03:01.3]}
4. Nxd4 {[%clk 0:03:01.7]} 4... Nc6 {[%clk 0:03:02.2]} 5. Nc3 {[%clk 0:03:01.5]}
5... Qc7 {[%clk 0:03:02.8]} 6. g3 {[%clk 0:03:01.2]} 6... a6 {[%clk 0:03:02.5]}
7. Bg2 {[%clk 0:03:01.5]} 7... Nf6 {[%clk 0:03:03.2]} 8. O-O {[%clk 0:03:01.4]}
8... Nxd4 {[%clk 0:03:03.8]} 9. Qxd4 {[%clk 0:03:01.6]} 9... Bc5 {[%clk
0:03:04.5]} 10. Bf4 {[%clk 0:03:01.8]} 10... d6 {[%clk 0:03:04.9]} 11. Qd2
{[%clk 0:03:01.1]} 11... h6 {[%clk 0:03:05.3]} 12. Rad1 {[%clk 0:03:00.5]} 12...
e5 {[%clk 0:03:05]} 13. Be3 {[%clk 0:03:00.4]} 13... Bxe3 {[%clk 0:03:05.3]} 14.
fxe3 {[%clk 0:02:58.5]} 14... Be6 {[%clk 0:03:03.9]} 15. Qxd6 {[%clk 0:02:58.2]}
15... Qxd6 {[%clk 0:03:04.8]} 16. Rxd6 {[%clk 0:02:57.8]} 16... Nd7 {[%clk
0:03:01.8]} 17. Nd5 {[%clk 0:02:23.4]} 17... Bxd5 {[%clk 0:02:54]} 18. exd5
{[%clk 0:02:06.9]} 18... Ke7 {[%clk 0:02:01.2]} 19. Rxd7+ {[%clk 0:02:06.2]}
19... Kxd7 {[%clk 0:02:02.1]} 20. Rxf7+ {[%clk 0:02:05.9]} 20... Kd6 {[%clk
0:02:03]} 21. Rxg7 {[%clk 0:02:03.5]} 21... Rac8 {[%clk 0:02:03.9]} 22. Rg6+
{[%clk 0:01:56.8]} 22... Kc5 {[%clk 0:02:03.3]} 23. a3 {[%clk 0:01:50.2]} 23...
a5 {[%clk 0:01:57.9]} 24. Kf2 {[%clk 0:01:47.5]} 24... b5 {[%clk 0:01:56.7]} 25.
Ke2 {[%clk 0:01:44.8]} 25... b4 {[%clk 0:01:53.4]} 26. a4 {[%clk 0:01:42.3]}
26... h5 {[%clk 0:01:25.7]} 27. Ra6 {[%clk 0:01:33.9]} 27... h4 {[%clk
0:01:22.8]} 28. Be4 {[%clk 0:01:27.3]} 28... hxg3 {[%clk 0:01:19]} 29. hxg3
{[%clk 0:01:27.6]} 29... Kc4 {[%clk 0:00:57.1]} 30. Rxa5 {[%clk 0:01:17.6]}
30... Rh2+ {[%clk 0:00:57]} 31. Kf3 {[%clk 0:01:11.5]} 31... b3 {[%clk
0:00:55.6]} 32. Bd3+ {[%clk 0:01:04.3]} 32... Kb4 {[%clk 0:00:53.5]} 33. Rb5+
{[%clk 0:01:04.3]} 33... Kxa4 {[%clk 0:00:54.1]} 34. cxb3# {[%clk 0:01:04.5]}
1-0

[Event "Early-Titled-Tuesday-Blitz-March-05-2024"]
[Site "Chess.com"]
[Date "2024.03.05"]
[Round "3"]
[White "jimmy-schlumpf"]
[Black "djano"]
[Result "0-1"]
[WhiteElo "2325"]
[BlackElo "2554"]
[TimeControl "180+1"]
[EndTime "8:29:35 PST"]
[Termination "djano won by resignation"]

1. Nf3 {[%clk 0:03:00.9]} 1... g6 {[%clk 0:02:59.5]} 2. d4 {[%clk 0:03:00]} 2...
Bg7 {[%clk 0:02:58.7]} 3. e4 {[%clk 0:02:59.9]} 3... d6 {[%clk 0:02:58.8]} 4.
Bc4 {[%clk 0:02:59.3]} 4... Nf6 {[%clk 0:02:58.5]} 5. Qe2 {[%clk 0:02:58.8]}
5... c6 {[%clk 0:02:57.2]} 6. Bb3 {[%clk 0:02:57.4]} 6... Kf8 {[%clk 0:02:55.7]}
7. O-O {[%clk 0:02:55.2]} 7... Bg4 {[%clk 0:02:55.9]} 8. h3 {[%clk 0:02:54.6]}
8... Bxf3 {[%clk 0:02:56.2]} 9. Qxf3 {[%clk 0:02:54.7]} 9... e6 {[%clk
0:02:54.4]} 10. Nc3 {[%clk 0:02:45.7]} 10... d5 {[%clk 0:02:52.5]} 11. e5 {[%clk
0:02:38.1]} 11... Nfd7 {[%clk 0:02:52]} 12. Ne2 {[%clk 0:02:38.6]} 12... c5
{[%clk 0:02:48.6]} 13. c3 {[%clk 0:02:38.1]} 13... c4 {[%clk 0:02:48.6]} 14. Bc2
{[%clk 0:02:37.2]} 14... Nc6 {[%clk 0:02:49.1]} 15. Qg3 {[%clk 0:02:35.4]} 15...
b5 {[%clk 0:02:34.2]} 16. a3 {[%clk 0:02:34.8]} 16... Kg8 {[%clk 0:02:30.4]} 17.
f4 {[%clk 0:02:34]} 17... h6 {[%clk 0:02:30.5]} 18. Qf3 {[%clk 0:02:27.9]} 18...
h5 {[%clk 0:02:29.3]} 19. g3 {[%clk 0:02:23.2]} 19... Ne7 {[%clk 0:02:29]} 20.
Kg2 {[%clk 0:02:21]} 20... Rb8 {[%clk 0:02:28.8]} 21. Bd2 {[%clk 0:02:19.4]}
21... a5 {[%clk 0:02:28.5]} 22. g4 {[%clk 0:02:19.5]} 22... Nc6 {[%clk
0:02:23.4]} 23. f5 {[%clk 0:02:17.9]} 23... hxg4 {[%clk 0:02:12.8]} 24. hxg4
{[%clk 0:02:16.3]} 24... Ndxe5 {[%clk 0:02:11.2]} 25. dxe5 {[%clk 0:02:12.9]}
25... Nxe5 {[%clk 0:02:12.1]} 26. Qg3 {[%clk 0:02:10]} 26... Rh4 {[%clk
0:02:04.4]} 27. f6 {[%clk 0:01:54.4]} 27... Rxg4 {[%clk 0:02:01]} 28. fxg7
{[%clk 0:01:52.3]} 28... Rxg3+ {[%clk 0:01:44.9]} 29. Nxg3 {[%clk 0:01:51.7]}
29... b4 {[%clk 0:01:40.7]} 30. axb4 {[%clk 0:01:50.2]} 30... axb4 {[%clk
0:01:40.8]} 31. Be3 {[%clk 0:01:40.2]} 31... bxc3 {[%clk 0:01:39.7]} 32. bxc3
{[%clk 0:01:31.6]} 32... Rb2 {[%clk 0:01:39.1]} 33. Rac1 {[%clk 0:01:17.3]}
33... Nd3 {[%clk 0:01:39.1]} 34. Bd4 {[%clk 0:01:17.2]} 34... Nxc1 {[%clk
0:01:35.2]} 35. Rxc1 {[%clk 0:01:16.7]} 35... Qg5 {[%clk 0:01:31.5]} 36. Rh1
{[%clk 0:00:44.1]} 36... Rxc2+ {[%clk 0:01:30.8]} 37. Kf3 {[%clk 0:00:44]} 37...
e5 {[%clk 0:01:24.2]} 0-1

[Event "Early-Titled-Tuesday-Blitz-March-05-2024"]
[Site "Chess.com"]
[Date "2024.03.05"]
[Round "3"]
[White "baki83"]
[Black "AA95"]
[Result "1-0"]
[WhiteElo "2811"]
[BlackElo "2511"]
[TimeControl "180+1"]
[EndTime "8:29:40 PST"]
[Termination "baki83 won on time"]

1. e4 {[%clk 0:03:00.9]} 1... e5 {[%clk 0:02:54.6]} 2. Nf3 {[%clk 0:03:00.8]}
2... Nf6 {[%clk 0:02:54.5]} 3. Nxe5 {[%clk 0:02:58.3]} 3... d6 {[%clk
0:02:54.4]} 4. Nf3 {[%clk 0:02:58.4]} 4... Nxe4 {[%clk 0:02:54.2]} 5. d4 {[%clk
0:02:58.8]} 5... d5 {[%clk 0:02:51.8]} 6. Bd3 {[%clk 0:02:59.1]} 6... Bd6 {[%clk
0:02:51.6]} 7. O-O {[%clk 0:02:58.1]} 7... O-O {[%clk 0:02:51.4]} 8. Nbd2 {[%clk
0:02:57.3]} 8... Bf5 {[%clk 0:02:32.7]} 9. Re1 {[%clk 0:02:48.8]} 9... Re8
{[%clk 0:02:17.4]} 10. Ne5 {[%clk 0:02:48.3]} 10... c5 {[%clk 0:01:45.4]} 11.
Qf3 {[%clk 0:01:47]} 11... Bxe5 {[%clk 0:00:31.2]} 12. Qxf5 {[%clk 0:01:46.5]}
12... Bxd4 {[%clk 0:00:18]} 13. Nxe4 {[%clk 0:01:43.5]} 13... dxe4 {[%clk
0:00:14.9]} 14. Bxe4 {[%clk 0:01:05]} 14... g6 {[%clk 0:00:14.2]} 15. Qf3 {[%clk
0:01:05.6]} 15... Nc6 {[%clk 0:00:13.2]} 16. c3 {[%clk 0:01:06.1]} 1-0

[Event "Early-Titled-Tuesday-Blitz-March-05-2024"]
[Site "Chess.com"]
[Date "2024.03.05"]
[Round "3"]
[White "LileKoridze"]
[Black "Hamisandwich"]
[Result "0-1"]
[WhiteElo "2433"]
[BlackElo "2606"]
[TimeControl "180+1"]
[EndTime "8:29:41 PST"]
[Termination "Hamisandwich won by resignation"]

1. d4 {[%clk 0:03:00.9]} 1... Nf6 {[%clk 0:02:58.9]} 2. c4 {[%clk 0:03:00.7]}
2... b6 {[%clk 0:02:59]} 3. Nf3 {[%clk 0:02:57.5]} 3... Bb7 {[%clk 0:02:58.9]}
4. g3 {[%clk 0:02:58.1]} 4... g6 {[%clk 0:02:58.8]} 5. Bg2 {[%clk 0:02:57.8]}
5... Bg7 {[%clk 0:02:59.4]} 6. O-O {[%clk 0:02:57.3]} 6... O-O {[%clk
0:03:00.1]} 7. Nc3 {[%clk 0:02:55.7]} 7... Ne4 {[%clk 0:03:00.2]} 8. Qc2 {[%clk
0:02:49.6]} 8... Nxc3 {[%clk 0:02:59.4]} 9. Qxc3 {[%clk 0:02:49.9]} 9... c5
{[%clk 0:02:58.5]} 10. e3 {[%clk 0:02:48.5]} 10... Be4 {[%clk 0:02:51.6]} 11.
Qd2 {[%clk 0:02:45.9]} 11... Nc6 {[%clk 0:02:48.1]} 12. d5 {[%clk 0:02:41.3]}
12... Na5 {[%clk 0:02:46.1]} 13. Qe2 {[%clk 0:02:39.3]} 13... b5 {[%clk
0:02:40.6]} 14. cxb5 {[%clk 0:02:37.7]} 14... Bxd5 {[%clk 0:02:35.8]} 15. Nd2
{[%clk 0:02:32.9]} 15... Bxg2 {[%clk 0:02:33.4]} 16. Kxg2 {[%clk 0:02:32.8]}
16... d5 {[%clk 0:02:31.7]} 17. Rd1 {[%clk 0:02:30.3]} 17... Qb6 {[%clk
0:02:24.6]} 18. Nf3 {[%clk 0:02:23.5]} 18... e6 {[%clk 0:02:19.9]} 19. Rb1
{[%clk 0:02:21.4]} 19... c4 {[%clk 0:02:16.9]} 20. a4 {[%clk 0:02:21.4]} 20...
Nb3 {[%clk 0:02:11.7]} 21. Bd2 {[%clk 0:02:21.1]} 21... a6 {[%clk 0:02:05.7]}
22. Bc3 {[%clk 0:02:15.7]} 22... axb5 {[%clk 0:02:00.7]} 23. axb5 {[%clk
0:02:15.7]} 23... Qxb5 {[%clk 0:01:58.6]} 24. Qc2 {[%clk 0:02:13.5]} 24... Rfd8
{[%clk 0:01:44.3]} 25. Bxg7 {[%clk 0:02:13]} 25... Kxg7 {[%clk 0:01:44.3]} 26.
Qc3+ {[%clk 0:02:13.5]} 26... Kg8 {[%clk 0:01:38.5]} 27. Ne5 {[%clk 0:02:12.7]}
27... Qa5 {[%clk 0:01:20.3]} 28. Qc2 {[%clk 0:02:11.6]} 28... Qc7 {[%clk
0:01:15.1]} 29. Qc3 {[%clk 0:02:10.7]} 29... Qa5 {[%clk 0:01:06]} 30. Qc2 {[%clk
0:02:10.2]} 30... Rac8 {[%clk 0:01:04.6]} 31. Ng4 {[%clk 0:02:08.3]} 31... h5
{[%clk 0:01:03.6]} 32. Ne5 {[%clk 0:02:05]} 32... Qb4 {[%clk 0:00:46.3]} 33. Nf3
{[%clk 0:02:02]} 33... Qf8 {[%clk 0:00:43.3]} 34. Nd4 {[%clk 0:02:01.3]} 34...
Nxd4 {[%clk 0:00:38.8]} 35. exd4 {[%clk 0:02:01.7]} 35... Qb4 {[%clk 0:00:32.7]}
36. Qc3 {[%clk 0:02:01.8]} 36... Qxc3 {[%clk 0:00:30.2]} 37. bxc3 {[%clk
0:02:02.1]} 37... Rb8 {[%clk 0:00:30.9]} 38. f4 {[%clk 0:02:01.6]} 38... Rb3
{[%clk 0:00:29.8]} 39. Rxb3 {[%clk 0:02:00.5]} 39... cxb3 {[%clk 0:00:30.7]} 40.
Rb1 {[%clk 0:02:00.8]} 40... Rb8 {[%clk 0:00:30.9]} 41. Kf3 {[%clk 0:02:01.7]}
41... Kg7 {[%clk 0:00:30.2]} 42. Ke3 {[%clk 0:02:02.2]} 42... Kf6 {[%clk
0:00:30.6]} 43. Kd3 {[%clk 0:02:02.4]} 43... b2 {[%clk 0:00:29.1]} 44. Kc2
{[%clk 0:02:02]} 44... Kf5 {[%clk 0:00:29.2]} 45. Rxb2 {[%clk 0:02:02.5]} 45...
Rxb2+ {[%clk 0:00:28.6]} 46. Kxb2 {[%clk 0:02:03.4]} 46... Kg4 {[%clk
0:00:28.7]} 47. Kb3 {[%clk 0:02:03.1]} 47... Kh3 {[%clk 0:00:29.1]} 48. c4
{[%clk 0:02:03.6]} 48... dxc4+ {[%clk 0:00:24.8]} 49. Kxc4 {[%clk 0:02:04.5]}
49... Kxh2 {[%clk 0:00:25.1]} 50. d5 {[%clk 0:02:04.9]} 50... exd5+ {[%clk
0:00:24.8]} 0-1

[Event "Early-Titled-Tuesday-Blitz-March-05-2024"]
[Site "Chess.com"]
[Date "2024.03.05"]
[Round "3"]
[White "NowInChess"]
[Black "MasterKroket"]
[Result "0-1"]
[WhiteElo "2254"]
[BlackElo "2470"]
[TimeControl "180+1"]
[EndTime "8:29:44 PST"]
[Termination "MasterKroket won on time"]

1. e4 {[%clk 0:03:00.9]} 1... e5 {[%clk 0:02:57.2]} 2. Nf3 {[%clk 0:03:00.7]}
2... Nc6 {[%clk 0:02:57.1]} 3. d4 {[%clk 0:03:01.3]} 3... exd4 {[%clk
0:02:57.1]} 4. Bc4 {[%clk 0:03:01.9]} 4... Nf6 {[%clk 0:02:56.7]} 5. e5 {[%clk
0:03:02.4]} 5... d5 {[%clk 0:02:56.4]} 6. Bb5 {[%clk 0:03:02.9]} 6... Ne4 {[%clk
0:02:56.1]} 7. Nxd4 {[%clk 0:03:03.3]} 7... Bd7 {[%clk 0:02:56.5]} 8. Bxc6
{[%clk 0:03:02.6]} 8... bxc6 {[%clk 0:02:54.9]} 9. O-O {[%clk 0:03:01.5]} 9...
Bc5 {[%clk 0:02:54.5]} 10. f3 {[%clk 0:03:01.3]} 10... Ng5 {[%clk 0:02:54.4]}
11. f4 {[%clk 0:03:01.6]} 11... Ne4 {[%clk 0:02:54.6]} 12. Be3 {[%clk
0:03:02.2]} 12... O-O {[%clk 0:02:48.6]} 13. Nd2 {[%clk 0:03:01.7]} 13... Nxd2
{[%clk 0:02:40]} 14. Qxd2 {[%clk 0:03:02.6]} 14... Bb6 {[%clk 0:02:40.1]} 15.
Rae1 {[%clk 0:02:28.3]} 15... c5 {[%clk 0:02:39.1]} 16. Nb3 {[%clk 0:02:19]}
16... d4 {[%clk 0:02:39.3]} 17. Bf2 {[%clk 0:02:15.4]} 17... Bb5 {[%clk
0:02:39.1]} 18. f5 {[%clk 0:01:42.8]} 18... Bxf1 {[%clk 0:02:38.8]} 19. Rxf1
{[%clk 0:01:42]} 19... Qd5 {[%clk 0:02:39]} 20. Bg3 {[%clk 0:01:22]} 20... c4
{[%clk 0:02:35.7]} 21. Nc1 {[%clk 0:01:21.9]} 21... Rad8 {[%clk 0:02:31.7]} 22.
Qg5 {[%clk 0:01:13.4]} 22... h6 {[%clk 0:02:21.6]} 23. Qh4 {[%clk 0:01:00.5]}
23... d3+ {[%clk 0:02:21.4]} 24. Kh1 {[%clk 0:00:43.2]} 24... d2 {[%clk
0:02:18.6]} 25. f6 {[%clk 0:00:39.4]} 25... dxc1=Q {[%clk 0:02:17.6]} 26. Rxc1
{[%clk 0:00:38.8]} 26... Qd2 {[%clk 0:02:06]} 27. Rf1 {[%clk 0:00:25.6]} 27...
Qg5 {[%clk 0:02:05.1]} 28. fxg7 {[%clk 0:00:23.5]} 28... Kxg7 {[%clk 0:01:58.3]}
29. Qxc4 {[%clk 0:00:17.7]} 29... Rd4 {[%clk 0:01:58.5]} 30. Qe2 {[%clk
0:00:10.6]} 30... Rd2 {[%clk 0:01:57.9]} 31. Qf3 {[%clk 0:00:09.2]} 31... Qg6
{[%clk 0:01:53.2]} 32. h4 {[%clk 0:00:07.8]} 32... Rd4 {[%clk 0:01:41.2]} 33. h5
{[%clk 0:00:06.1]} 33... Qg5 {[%clk 0:01:40.5]} 0-1

[Event "Early-Titled-Tuesday-Blitz-March-05-2024"]
[Site "Chess.com"]
[Date "2024.03.05"]
[Round "3"]
[White "Andrey_Klymchuk"]
[Black "Darius321"]
[Result "1-0"]
[WhiteElo "2705"]
[BlackElo "2377"]
[TimeControl "180+1"]
[EndTime "8:29:45 PST"]
[Termination "Andrey_Klymchuk won by resignation"]

1. e4 {[%clk 0:03:00.9]} 1... e5 {[%clk 0:02:59]} 2. Nf3 {[%clk 0:03:00.6]} 2...
Nf6 {[%clk 0:02:59.3]} 3. Nxe5 {[%clk 0:02:59.8]} 3... d6 {[%clk 0:02:59]} 4.
Nf3 {[%clk 0:02:58.3]} 4... Nxe4 {[%clk 0:02:59.3]} 5. Nc3 {[%clk 0:02:59]} 5...
Nf6 {[%clk 0:02:58]} 6. d4 {[%clk 0:02:58.6]} 6... d5 {[%clk 0:02:58.4]} 7. Bd3
{[%clk 0:02:57.1]} 7... Be7 {[%clk 0:02:52.3]} 8. O-O {[%clk 0:02:56.6]} 8...
O-O {[%clk 0:02:52.5]} 9. Ne5 {[%clk 0:02:56.7]} 9... Nbd7 {[%clk 0:02:46.6]}
10. Bf4 {[%clk 0:02:55.9]} 10... Re8 {[%clk 0:02:40.4]} 11. Re1 {[%clk
0:02:55.2]} 11... Nf8 {[%clk 0:02:40]} 12. h3 {[%clk 0:02:51]} 12... Be6 {[%clk
0:02:39.8]} 13. Qf3 {[%clk 0:02:45.4]} 13... Ng6 {[%clk 0:02:37]} 14. Nxg6
{[%clk 0:02:40.6]} 14... hxg6 {[%clk 0:02:36.6]} 15. Bxg6 {[%clk 0:02:37.1]}
15... Ne4 {[%clk 0:02:24.4]} 16. Nxe4 {[%clk 0:02:20.9]} 16... dxe4 {[%clk
0:02:25.3]} 17. Bxe4 {[%clk 0:02:19]} 17... Qxd4 {[%clk 0:02:24.5]} 18. c3
{[%clk 0:02:10]} 18... Qb6 {[%clk 0:02:22.5]} 19. Qh5 {[%clk 0:02:08]} 19... Bc5
{[%clk 0:01:37.9]} 20. Bg5 {[%clk 0:01:48.6]} 20... f5 {[%clk 0:01:16.7]} 21.
Bxf5 {[%clk 0:01:20.1]} 21... Bxf2+ {[%clk 0:01:03.1]} 22. Kh1 {[%clk 0:01:20]}
22... Bd7 {[%clk 0:00:32]} 23. Bh7+ {[%clk 0:01:09.7]} 23... Kf8 {[%clk
0:00:25.9]} 24. Qf3+ {[%clk 0:01:07]} 1-0

[Event "Early-Titled-Tuesday-Blitz-March-05-2024"]
[Site "Chess.com"]
[Date "2024.03.05"]
[Round "3"]
[White "lamomiajunior"]
[Black "LiadCuba"]
[Result "0-1"]
[WhiteElo "2732"]
[BlackElo "2519"]
[TimeControl "180+1"]
[EndTime "8:29:52 PST"]
[Termination "LiadCuba won by resignation"]

1. d4 {[%clk 0:03:00.9]} 1... d5 {[%clk 0:02:57.7]} 2. c4 {[%clk 0:03:01]} 2...
e6 {[%clk 0:02:57.9]} 3. Nc3 {[%clk 0:03:01.4]} 3... Nf6 {[%clk 0:02:58.2]} 4.
cxd5 {[%clk 0:03:02]} 4... Nxd5 {[%clk 0:02:58.3]} 5. e4 {[%clk 0:03:01.8]} 5...
Nxc3 {[%clk 0:02:58.5]} 6. bxc3 {[%clk 0:03:02.7]} 6... c5 {[%clk 0:02:59.2]} 7.
Rb1 {[%clk 0:03:02.7]} 7... Be7 {[%clk 0:02:47.4]} 8. Nf3 {[%clk 0:03:02.2]}
8... O-O {[%clk 0:02:43.4]} 9. Bd3 {[%clk 0:03:02.3]} 9... Nc6 {[%clk
0:02:34.2]} 10. e5 {[%clk 0:02:55.4]} 10... cxd4 {[%clk 0:02:05.9]} 11. cxd4
{[%clk 0:02:53.8]} 11... Nb4 {[%clk 0:01:52.5]} 12. Bc4 {[%clk 0:02:37.3]} 12...
b5 {[%clk 0:01:42.1]} 13. Bb3 {[%clk 0:02:33.9]} 13... Bb7 {[%clk 0:01:38]} 14.
O-O {[%clk 0:02:33.7]} 14... Bxf3 {[%clk 0:01:29.6]} 15. Qxf3 {[%clk 0:02:31.6]}
15... Qxd4 {[%clk 0:01:29.4]} 16. Bb2 {[%clk 0:02:31.3]} 16... Qh4 {[%clk
0:01:21.3]} 17. a3 {[%clk 0:02:29.3]} 17... Nd5 {[%clk 0:01:14.6]} 18. Bxd5
{[%clk 0:02:28.8]} 18... exd5 {[%clk 0:01:15.5]} 19. Qxd5 {[%clk 0:02:29.1]}
19... a6 {[%clk 0:01:12.1]} 20. g3 {[%clk 0:02:24.6]} 20... Qg4 {[%clk
0:01:08.1]} 21. f3 {[%clk 0:02:13.1]} 21... Qe6 {[%clk 0:01:03.1]} 22. Qe4
{[%clk 0:02:05.1]} 22... Rac8 {[%clk 0:00:58.2]} 23. f4 {[%clk 0:02:05.1]} 23...
Rc4 {[%clk 0:00:58.2]} 24. Qe2 {[%clk 0:02:04.1]} 24... Rfc8 {[%clk 0:00:54.5]}
25. f5 {[%clk 0:02:01.8]} 25... Bc5+ {[%clk 0:00:54.6]} 26. Kg2 {[%clk
0:02:00.1]} 26... Qd5+ {[%clk 0:00:52]} 27. Qf3 {[%clk 0:02:00]} 27... Rc2+
{[%clk 0:00:49.3]} 28. Kh3 {[%clk 0:01:59.8]} 28... Qd2 {[%clk 0:00:46.1]} 29.
Qb7 {[%clk 0:00:58.7]} 29... Qxh2+ {[%clk 0:00:37.7]} 30. Kg4 {[%clk 0:00:58.9]}
30... h5+ {[%clk 0:00:37.4]} 31. Kf3 {[%clk 0:00:57.6]} 31... Qg2+ {[%clk
0:00:36.2]} 32. Kf4 {[%clk 0:00:57]} 32... Qxb7 {[%clk 0:00:36.3]} 0-1

[Event "Early-Titled-Tuesday-Blitz-March-05-2024"]
[Site "Chess.com"]
[Date "2024.03.05"]
[Round "3"]
[White "diamonds13"]
[Black "BillCoe"]
[Result "0-1"]
[WhiteElo "2358"]
[BlackElo "2109"]
[TimeControl "180+1"]
[EndTime "8:29:56 PST"]
[Termination "BillCoe won by resignation"]

1. d4 {[%clk 0:03:00.9]} 1... d5 {[%clk 0:02:59.4]} 2. c4 {[%clk 0:03:01.1]}
2... e6 {[%clk 0:02:59.6]} 3. Nc3 {[%clk 0:03:00.3]} 3... Be7 {[%clk 0:03:00.2]}
4. cxd5 {[%clk 0:03:00.4]} 4... exd5 {[%clk 0:03:01.1]} 5. h3 {[%clk 0:03:00.7]}
5... c6 {[%clk 0:03:01.4]} 6. Bf4 {[%clk 0:03:00.4]} 6... Nf6 {[%clk 0:03:01.6]}
7. e3 {[%clk 0:03:00.7]} 7... Bf5 {[%clk 0:03:01.3]} 8. g4 {[%clk 0:02:59.4]}
8... Bg6 {[%clk 0:03:01.4]} 9. Bg2 {[%clk 0:02:59.3]} 9... Nbd7 {[%clk
0:03:00.2]} 10. Nge2 {[%clk 0:02:59.1]} 10... O-O {[%clk 0:03:00.1]} 11. Qd2
{[%clk 0:02:48.9]} 11... Nb6 {[%clk 0:02:58.7]} 12. b3 {[%clk 0:02:46.1]} 12...
Re8 {[%clk 0:02:57.9]} 13. f3 {[%clk 0:02:44.7]} 13... Bb4 {[%clk 0:02:51.2]}
14. a3 {[%clk 0:02:41.7]} 14... Bxc3 {[%clk 0:02:51.1]} 15. Qxc3 {[%clk
0:02:41.1]} 15... Rc8 {[%clk 0:02:51.2]} 16. h4 {[%clk 0:02:37.4]} 16... h6
{[%clk 0:02:50.8]} 17. h5 {[%clk 0:02:34.9]} 17... Bh7 {[%clk 0:02:49.6]} 18. g5
{[%clk 0:02:35.1]} 18... hxg5 {[%clk 0:02:43.7]} 19. Bxg5 {[%clk 0:02:33.6]}
19... Qd6 {[%clk 0:02:38.4]} 20. Bf4 {[%clk 0:02:29.6]} 20... Qe7 {[%clk
0:02:37.3]} 21. h6 {[%clk 0:02:24.3]} 21... g6 {[%clk 0:02:36.5]} 22. Qc5 {[%clk
0:02:12.1]} 22... Qxc5 {[%clk 0:02:34.1]} 23. dxc5 {[%clk 0:02:12.2]} 23... Nbd7
{[%clk 0:02:31.9]} 24. b4 {[%clk 0:02:12.3]} 24... Ne5 {[%clk 0:02:32]} 25.
O-O-O {[%clk 0:02:08.3]} 25... Nc4 {[%clk 0:02:31.5]} 26. Bh3 {[%clk 0:01:59.2]}
26... Rcd8 {[%clk 0:02:23.4]} 27. Bg5 {[%clk 0:01:54]} 27... Nxe3 {[%clk
0:02:12.6]} 28. Bxf6 {[%clk 0:01:53.8]} 28... Nxd1 {[%clk 0:02:12.4]} 29. Bxd8
{[%clk 0:01:36.1]} 29... Nf2 {[%clk 0:02:10.1]} 30. Rh2 {[%clk 0:01:34.7]} 30...
Rxe2 {[%clk 0:02:07.2]} 31. Rxf2 {[%clk 0:01:10.9]} 31... Rxf2 {[%clk
0:02:06.8]} 32. Bc8 {[%clk 0:01:11.4]} 32... Rxf3 {[%clk 0:02:01.7]} 33. Bxb7
{[%clk 0:01:11.6]} 33... Rxa3 {[%clk 0:02:00.2]} 34. Bxc6 {[%clk 0:01:11.5]}
34... Rb3 {[%clk 0:01:59.1]} 35. Bxd5 {[%clk 0:01:08.8]} 35... Rxb4 {[%clk
0:01:57.9]} 36. c6 {[%clk 0:01:07.8]} 36... g5 {[%clk 0:01:57.5]} 37. Bxg5
{[%clk 0:00:58.7]} 37... Rb5 {[%clk 0:01:50.8]} 38. c7 {[%clk 0:00:46.3]} 38...
Rc5+ {[%clk 0:01:50.4]} 39. Kb2 {[%clk 0:00:41.6]} 39... Rxc7 {[%clk 0:01:51.3]}
40. Be3 {[%clk 0:00:32.6]} 40... Bf5 {[%clk 0:01:46.2]} 41. Ka3 {[%clk 0:00:30]}
41... Be6 {[%clk 0:01:44.5]} 42. Bxe6 {[%clk 0:00:25.4]} 42... fxe6 {[%clk
0:01:45.4]} 43. Kb4 {[%clk 0:00:25.6]} 43... Kh7 {[%clk 0:01:44]} 0-1

[Event "Early-Titled-Tuesday-Blitz-March-05-2024"]
[Site "Chess.com"]
[Date "2024.03.05"]
[Round "3"]
[White "Grandelicious"]
[Black "GelmanAlexander"]
[Result "0-1"]
[WhiteElo "2889"]
[BlackElo "2678"]
[TimeControl "180+1"]
[EndTime "8:29:57 PST"]
[Termination "GelmanAlexander won by resignation"]

1. Nf3 {[%clk 0:03:00.9]} 1... c5 {[%clk 0:03:00]} 2. e3 {[%clk 0:03:00.6]} 2...
d6 {[%clk 0:02:59.7]} 3. d4 {[%clk 0:03:01]} 3... Nd7 {[%clk 0:03:00.3]} 4. d5
{[%clk 0:02:52.9]} 4... Ngf6 {[%clk 0:02:59]} 5. Nc3 {[%clk 0:02:53.5]} 5... a6
{[%clk 0:02:55.2]} 6. a4 {[%clk 0:02:53.4]} 6... g6 {[%clk 0:02:55.8]} 7. e4
{[%clk 0:02:52.5]} 7... Bg7 {[%clk 0:02:56.4]} 8. Be2 {[%clk 0:02:50.2]} 8...
O-O {[%clk 0:02:56.6]} 9. O-O {[%clk 0:02:50.9]} 9... b6 {[%clk 0:02:55.9]} 10.
h3 {[%clk 0:02:48]} 10... Ne8 {[%clk 0:02:55.6]} 11. Bf4 {[%clk 0:02:45.6]}
11... Ne5 {[%clk 0:02:55]} 12. Nd2 {[%clk 0:02:42.7]} 12... Nc7 {[%clk
0:02:52.6]} 13. Bg3 {[%clk 0:02:40.6]} 13... Rb8 {[%clk 0:02:51.3]} 14. f4
{[%clk 0:02:40]} 14... Nd7 {[%clk 0:02:51.3]} 15. Nc4 {[%clk 0:02:39.8]} 15...
b5 {[%clk 0:02:46.6]} 16. axb5 {[%clk 0:02:31.1]} 16... axb5 {[%clk 0:02:46.9]}
17. Na5 {[%clk 0:02:31.6]} 17... Bb7 {[%clk 0:02:41.5]} 18. Nc6 {[%clk
0:01:56.1]} 18... Bxc6 {[%clk 0:02:41]} 19. dxc6 {[%clk 0:01:57]} 19... Nb6
{[%clk 0:02:26.7]} 20. e5 {[%clk 0:01:42.9]} 20... b4 {[%clk 0:01:43.7]} 21. Ne4
{[%clk 0:01:36.4]} 21... Ncd5 {[%clk 0:01:38.8]} 22. Rf3 {[%clk 0:01:21.1]}
22... Rc8 {[%clk 0:01:28.1]} 23. Rd3 {[%clk 0:01:01.1]} 23... dxe5 {[%clk
0:01:16.3]} 24. fxe5 {[%clk 0:01:01.4]} 24... Rxc6 {[%clk 0:01:15.1]} 25. c4
{[%clk 0:00:47.2]} 25... bxc3 {[%clk 0:01:14.9]} 26. bxc3 {[%clk 0:00:47.5]}
26... c4 {[%clk 0:01:09.9]} 27. Rd4 {[%clk 0:00:44]} 27... e6 {[%clk 0:01:09.3]}
28. Nd6 {[%clk 0:00:31.2]} 28... Rxd6 {[%clk 0:01:03.8]} 29. exd6 {[%clk
0:00:31]} 29... Nxc3 {[%clk 0:01:03.7]} 30. Rc1 {[%clk 0:00:21.5]} 30... Bxd4+
{[%clk 0:01:00.6]} 0-1